[Event "3rd Gujarat GM Open 2022"]
[Site "Ahmedabad"]
[Date "2022.04.02"]
[Round "3.4"]
[White "De Silva, L M S T"]
[Black "Harsha Bharathakoti"]
[Result "1/2-1/2"]
[ECO "B31"]
[WhiteElo "2220"]
[BlackElo "2499"]
[Annotator "ChessBase"]
[PlyCount "60"]
[EventDate "2022.03.31"]
[EventType "swiss"]
[EventCountry "IND"]
[SourceTitle "playchess.com"]
[Source "ChessBase"]
[SourceQuality "1"]
[TimeControl "5400+30"]

1. e4 {[%emt 1:31:00]} c5 {[%emt 1:31:00]} 2. Nf3 {[%emt 0:00:30]} Nc6 {[%emt 0:00:30]} 3. Bb5 {[%emt 0:00:30]} g6 {[%emt 0:00:30]} 4. O-O {[%emt 0:00:30]} Bg7 {[%emt 0:00:30]} 5. c3 {[%emt 0:00:30]} Nf6 {[%emt 0:00:30]} 6. Re1 {[%emt 0:00:30]} O-O {[%emt 0:00:30]} 7. d4 {[%emt 0:00:30]} d5 {[%emt 0:00:30]} 8. e5 {[%emt 0:00:30]} Ne4 {[%emt 0:00:30]} 9. Bxc6 {[%emt 0:00:30]} bxc6 {[%emt 0:00:30]} 10. Be3 {[%emt 0:00:30]} Qb6 {[%emt 0:00:30]} 11. Qc1 {[%emt 0:00:30]} cxd4 {[%emt 0:00:30]} 12. cxd4 {[%emt 0:00:30]} a5 {[%emt 0:00:30]} 13. Nc3 {[%emt 0:00:30]} Nxc3 {[%emt 0:00:30]} 14. Qxc3 {[%emt 0:00:30]} Bg4 {[%emt 0:00:30]} 15. Rac1 {[%emt 0:00:30]} Bxf3 {[%emt 0:00:30]} 16. gxf3 {[%emt 0:00:30]} Ra6 {[%emt 0:00:30]} 17. Bg5 {[%emt 0:00:30]} Re8 {[%emt 0:00:30]} 18. Qd2 {[%emt 0:00:30]} Qb7 {[%emt 0:00:30]} 19. Rc2 {[%emt 0:00:30]} e6 {[%emt 0:00:30]} 20. Re3 {[%emt 0:00:30]} a4 {[%emt 0:00:30]} 21. Rec3 {[%emt 0:00:30]} Rb6 {[%emt 0:00:30]} 22. Qc1 {[%emt 0:00:30]} Rc8 {[%emt 0:00:30]} 23. Kg2 {[%emt 0:00:30]} h5 {[%emt 0:00:30]} 24. a3 {[%emt 0:00:30]} Kh7 {[%emt 0:00:30]} 25. Qd2 {[%emt 0:00:30]} Bf8 {[%emt 0:00:30]} 26. Qf4 {[%emt 0:00:30]} Kg8 {[%emt 0:00:30]} 27. Qc1 {[%emt 0:00:30]} Kh7 {[%emt 0:00:30]} 28. Qf4 {[%emt 0:00:30]} Kg8 {[%emt 0:00:30]} 29. Qc1 {[%emt 0:00:30]} Kh7 {[%emt 0:00:30]} 30. Qf4 {[%emt 0:00:30]} Kg8 1/2-1/2

[Event "3rd Gujarat GM Open 2022"]
[Site "Ahmedabad"]
[Date "2022.04.02"]
[Round "3.5"]
[White "Suvrajit, Saha"]
[Black "Fawzy, Adham"]
[Result "0-1"]
[ECO "A49"]
[WhiteElo "2198"]
[BlackElo "2476"]
[Annotator "ChessBase"]
[PlyCount "126"]
[EventDate "2022.03.31"]
[EventType "swiss"]
[EventCountry "IND"]
[SourceTitle "playchess.com"]
[Source "ChessBase"]
[SourceQuality "1"]
[TimeControl "5400+30"]

1. d4 {[%emt 0:00:04]} Nf6 {[%emt 0:08:43]} 2. Nf3 {[%emt 0:00:07]} g6 {[%emt 0:00:05]} 3. g3 {[%emt 0:01:15]} b5 {[%emt 0:01:42]} 4. Bg2 {[%emt 0:00:49]} Bb7 {[%emt 0:01:21]} 5. O-O {[%emt 0:00:52]} Bg7 {[%emt 0:06:26]} 6. Na3 {[%emt 0:04:37]} a6 {[%emt 0:05:42]} 7. c4 {[%emt 0:01:52]} b4 {[%emt 0:00:15]} 8. Nc2 {[%emt 0:00:24]} a5 {[%emt 0:00:01]} 9. Re1 {[%emt 0:07:58]} Be4 {[%emt 0:03:00]} 10. Ne3 {[%emt 0:06:23]} O-O {[%emt 0:04:02]} 11. a3 {[%emt 0:01:11]} Na6 {[%emt 0:00:54]} 12. axb4 {[%emt 0:05:53]} Nxb4 {[%emt 0:01:34]} 13. Bd2 {[%emt 0:02:07]} d6 {[%emt 0:03:24]} 14. Bc3 {[%emt 0:02:17]} e6 {[%emt 0:05:26]} 15. Nd2 {[%emt 0:03:14]} Bxg2 {[%emt 0:01:22]} 16. Nxg2 {[%emt 0:05:42]} Nd7 {[%emt 0:01:56]} 17. Nb3 {[%emt 0:03:52]} c5 {[%emt 0:07:01]} 18. dxc5 {[%emt 0:03:08]} dxc5 {[%emt 0:03:56]} 19. Bxg7 {[%emt 0:02:33]} Kxg7 {[%emt 0:00:06]} 20. Qc1 {[%emt 0:04:48]} a4 {[%emt 0:05:27]} 21. Rd1 {[%emt 0:13:29]} Qe7 {[%emt 0:07:35]} 22. Rxd7 {[%emt 0:04:40]} Qxd7 {[%emt 0:00:09]} 23. Qc3+ {[%emt 0:00:08]} e5 {[%emt 0:00:16]} 24. Nxc5 {[%emt 0:03:16]} Qd4 {[%emt 0:01:00]} 25. Qxb4 {[%emt 0:06:20]} a3 {[%emt 0:02:34]} 26. Rxa3 {[%emt 0:00:25]} Rfb8 {[%emt 0:00:26]} 27. Ne6+ {[%emt 0:01:24]} fxe6 {[%emt 0:00:06]} 28. Qe7+ {[%emt 0:00:56]} Kh6 {[%emt 0:00:18]} 29. Ne3 {[%emt 0:05:39]} Rxa3 {[%emt 0:04:17]} 30. bxa3 {[%emt 0:00:14]} Qe4 {[%emt 0:00:14]} 31. Nf1 {[%emt 0:03:13]} Rb1 {[%emt 0:03:35]} 32. Qf8+ {[%emt 0:00:46]} Kh5 {[%emt 0:00:04]} 33. Qf3+ {[%emt 0:01:11]} Qxf3 {[%emt 0:00:02]} 34. exf3 {[%emt 0:00:02]} Rc1 {[%emt 0:02:48]} 35. Kg2 {[%emt 0:00:28]} Rxc4 {[%emt 0:00:03]} 36. Nd2 {[%emt 0:01:14]} Rc2 {[%emt 0:01:09]} 37. Ne4 {[%emt 0:00:06]} g5 {[%emt 0:00:04]} 38. h4 {[%emt 0:01:55]} gxh4 {[%emt 0:02:56]} 39. g4+ {[%emt 0:00:02]} Kg6 {[%emt 0:00:02]} 40. Kh3 {[%emt 0:00:01]} Ra2 {[%emt 0:02:46]} 41. Kxh4 {[%emt 0:00:04]} Rxa3 {[%emt 0:00:02]} 42. Kg3 {[%emt 0:00:13]} Ra7 {[%emt 0:02:11]} 43. Nc5 {[%emt 0:00:40]} Re7 {[%emt 0:00:19]} 44. Nd3 {[%emt 0:00:51]} Kf6 {[%emt 0:00:04]} 45. Nc5 {[%emt 0:00:04]} Rc7 {[%emt 0:00:21]} 46. Ne4+ {[%emt 0:00:23]} Kg6 {[%emt 0:00:01]} 47. Kh4 {[%emt 0:00:19]} Rf7 {[%emt 0:00:10]} 48. Kg3 {[%emt 0:00:22]} h5 {[%emt 0:00:46]} 49. Nc5 {[%emt 0:01:19]} h4+ {[%emt 0:02:49]} 50. Kg2 {[%emt 0:00:07]} Rc7 {[%emt 0:04:23]} 51. Nxe6 {[%emt 0:02:17]} Rc6 {[%emt 0:01:17]} 52. f4 {[%emt 0:00:23]} exf4 {[%emt 0:00:27]} 53. Nxf4+ {[%emt 0:03:00]} Kg5 {[%emt 0:00:19]} 54. Nd5 {[%emt 0:00:38]} Kxg4 {[%emt 0:00:39]} 55. Ne3+ {[%emt 0:00:02]} Kg5 {[%emt 0:01:15]} 56. Nf1 {[%emt 0:00:38]} Kf4 {[%emt 0:02:00]} 57. Ne3 {[%emt 0:00:16]} Rh6 {[%emt 0:00:21]} 58. Nf1 {[%emt 0:00:51]} h3+ {[%emt 0:00:38]} 59. Kg1 {[%emt 0:00:35]} Kf3 {[%emt 0:00:18]} 60. Nh2+ {[%emt 0:00:32]} Ke2 {[%emt 0:00:01]} 61. Nf1 {[%emt 0:00:25]} h2+ {[%emt 0:00:20]} 62. Nxh2 {[%emt 0:00:32]} Rg6+ {[%emt 0:00:13]} 63. Kh1 {[%emt 0:00:02]} Kxf2 {[%emt 0:00:08]} 0-1

[Event "3rd Gujarat GM Open 2022"]
[Site "Ahmedabad"]
[Date "2022.04.02"]
[Round "3.6"]
[White "Mirzoev, Azer"]
[Black "Pandey Srishti"]
[Result "1-0"]
[ECO "D23"]
[WhiteElo "2468"]
[BlackElo "2177"]
[Annotator "ChessBase"]
[PlyCount "85"]
[EventDate "2022.03.31"]
[EventType "swiss"]
[EventCountry "IND"]
[SourceTitle "playchess.com"]
[Source "ChessBase"]
[SourceQuality "1"]
[TimeControl "5400+30"]

1. d4 {[%emt 0:05:44]} d5 {[%emt 0:00:11]} 2. Nf3 {[%emt 0:00:07]} Nf6 {[%emt 0:00:20]} 3. c4 {[%emt 0:00:03]} c6 {[%emt 0:00:05]} 4. Qc2 {[%emt 0:00:05]} dxc4 {[%emt 0:00:06]} 5. Qxc4 {[%emt 0:00:03]} Bf5 {[%emt 0:00:20]} 6. g3 {[%emt 0:00:09]} e6 {[%emt 0:00:04]} 7. Bg2 {[%emt 0:00:04]} Be7 {[%emt 0:00:04]} 8. O-O {[%emt 0:00:14]} O-O {[%emt 0:00:05]} 9. Nbd2 {[%emt 0:00:18]} Qb6 {[%emt 0:02:25]} 10. Nh4 {[%emt 0:02:54]} Rd8 {[%emt 0:00:30]} 11. Nxf5 {[%emt 0:00:38]} exf5 {[%emt 0:00:05]} 12. e3 {[%emt 0:01:05]} Na6 {[%emt 0:04:26]} 13. a3 {[%emt 0:00:49]} Nc7 {[%emt 0:00:24]} 14. Qc2 {[%emt 0:01:06]} g6 {[%emt 0:01:07]} 15. Nc4 {[%emt 0:00:07]} Qa6 {[%emt 0:01:03]} 16. Bd2 {[%emt 0:02:49]} Ncd5 {[%emt 0:02:56]} 17. Rfc1 {[%emt 0:00:36]} c5 {[%emt 0:10:13]} 18. dxc5 {[%emt 0:04:20]} Bxc5 {[%emt 0:03:05]} 19. Qb3 {[%emt 0:00:11]} Qe6 {[%emt 0:02:40]} 20. Be1 {[%emt 0:01:59]} h5 {[%emt 0:11:57]} 21. Na5 {[%emt 0:12:54]} b6 {[%emt 0:34:52]} 22. Nb7 {[%emt 0:03:23]} Rdb8 {[%emt 0:00:04]} 23. Nxc5 {[%emt 0:00:10]} bxc5 {[%emt 0:00:03]} 24. Qa2 {[%emt 0:02:50]} Rc8 {[%emt 0:00:28]} 25. Rc2 {[%emt 0:03:06]} Rab8 {[%emt 0:00:54]} 26. Rd1 {[%emt 0:08:38]} Nf4 {[%emt 0:03:35]} 27. Qxe6 {[%emt 0:00:51]} Nxe6 {[%emt 0:00:01]} 28. Bc3 {[%emt 0:04:38]} Ne4 {[%emt 0:01:37]} 29. Be5 {[%emt 0:00:40]} Rd8 {[%emt 0:00:07]} 30. Rcc1 {[%emt 0:02:37]} Rbc8 {[%emt 0:03:23]} 31. Bxe4 {[%emt 0:14:38]} fxe4 {[%emt 0:00:03]} 32. Rxd8+ {[%emt 0:00:22]} Rxd8 {[%emt 0:00:15]} 33. Bf6 {[%emt 0:00:11]} Rd5 {[%emt 0:02:23]} 34. Rc4 {[%emt 0:01:17]} g5 {[%emt 0:09:45]} 35. h4 {[%emt 0:01:32]} gxh4 {[%emt 0:00:19]} 36. gxh4 {[%emt 0:00:09]} Kh7 {[%emt 0:07:44]} 37. Rxe4 {[%emt 0:00:12]} Kg6 {[%emt 0:00:07]} 38. Bc3 {[%emt 0:00:09]} Rd7 {[%emt 0:00:32]} 39. Kg2 {[%emt 0:00:23]} Nc7 {[%emt 0:00:54]} 40. Rc4 {[%emt 0:03:57]} Rd5 {[%emt 0:00:42]} 41. e4 {[%emt 0:00:58]} Rd3 {[%emt 0:00:02]} 42. Rxc5 {[%emt 0:00:30]} Ne6 {[%emt 0:00:02]} 43. Rf5 {[%emt 0:00:39]} 1-0

[Event "3rd Gujarat GM Open 2022"]
[Site "Ahmedabad"]
[Date "2022.04.02"]
[Round "3.7"]
[White "Deshmukh, Anup"]
[Black "Huerga Leache, Mikel"]
[Result "1-0"]
[ECO "A29"]
[WhiteElo "2190"]
[BlackElo "2470"]
[Annotator "ChessBase"]
[PlyCount "69"]
[EventDate "2022.03.31"]
[EventType "swiss"]
[EventCountry "IND"]
[SourceTitle "playchess.com"]
[Source "ChessBase"]
[SourceQuality "1"]
[TimeControl "5400+30"]

1. c4 {[%emt 1:31:00]} e5 {[%emt 0:00:35]} 2. Nc3 {[%emt 0:00:00]} Nf6 {[%emt 0:00:06]} 3. Nf3 {[%emt 0:00:00]} Nc6 {[%emt 0:00:05]} 4. g3 {[%emt 0:00:00]} Nd4 {[%emt 0:00:07]} 5. Nh4 {[%emt 0:00:00]} Bb4 {[%emt 0:04:49]} 6. d3 {[%emt 0:00:00]} O-O {[%emt 0:01:46]} 7. Bg2 {[%emt 0:00:00]} c6 {[%emt 0:02:36]} 8. O-O {[%emt 0:00:00]} d6 {[%emt 0:07:16]} 9. e3 {[%emt 0:00:00]} Bxc3 {[%emt 0:01:14]} 10. bxc3 {[%emt 0:00:00]} Ne6 {[%emt 0:01:43]} 11. Rb1 {[%emt 0:00:00]} Qa5 {[%emt 0:04:53]} 12. Nf5 {[%emt 0:00:00]} Qc7 {[%emt 0:00:21]} 13. e4 {[%emt 0:00:00]} Rd8 {[%emt 0:02:00]} 14. f4 {[%emt 0:00:00]} Kh8 {[%emt 0:17:51]} 15. Ba3 {[%emt 0:00:00]} Ng8 {[%emt 0:01:41]} 16. d4 {[%emt 0:00:00]} f6 {[%emt 0:05:43]} 17. dxe5 {[%emt 0:00:00]} dxe5 {[%emt 0:01:26]} 18. Nd6 {[%emt 0:00:00]} Nh6 {[%emt 0:03:28]} 19. fxe5 {[%emt 0:00:00]} fxe5 {[%emt 0:05:02]} 20. c5 {[%emt 0:00:00]} b6 {[%emt 0:01:43]} 21. Qh5 {[%emt 0:00:00]} bxc5 {[%emt 0:01:52]} 22. Nxc8 {[%emt 0:00:00]} Rdxc8 {[%emt 0:00:56]} 23. Bh3 {[%emt 0:00:00]} Re8 {[%emt 0:00:02]} 24. Bc1 {[%emt 0:00:00]} Ng8 {[%emt 0:09:46]} 25. Rf7 {[%emt 0:00:00]} Qd6 {[%emt 0:03:26]} 26. Bf5 {[%emt 0:00:00]} h6 {[%emt 0:07:14]} 27. Qg6 {[%emt 0:04:35]} Qd1+ {[%emt 0:01:29]} 28. Kf2 {[%emt 0:02:05]} Qc2+ {[%emt 0:00:56]} 29. Ke1 {[%emt 0:00:40]} Nf6 {[%emt 0:00:52]} 30. Rxf6 {[%emt 0:02:06]} Ng5 {[%emt 0:00:01]} 31. Bxg5 {[%emt 0:00:36]} Qxb1+ {[%emt 0:00:19]} 32. Ke2 {[%emt 0:01:49]} Qxa2+ {[%emt 0:01:22]} 33. Ke3 {[%emt 0:00:22]} Qg8 {[%emt 0:00:21]} 34. Rf7 {[%emt 0:01:25]} Rf8 {[%emt 0:00:48]} 35. Bf6 {[%emt 0:00:34]} 1-0

[Event "3rd Gujarat GM Open 2022"]
[Site "Ahmedabad"]
[Date "2022.04.02"]
[Round "3.8"]
[White "Krishna C R G"]
[Black "Singh Ojasva"]
[Result "1/2-1/2"]
[ECO "D45"]
[WhiteElo "2466"]
[BlackElo "2141"]
[Annotator "ChessBase"]
[PlyCount "112"]
[EventDate "2022.03.31"]
[EventType "swiss"]
[EventCountry "IND"]
[SourceTitle "playchess.com"]
[Source "ChessBase"]
[SourceQuality "1"]
[TimeControl "5400+30"]

1. d4 {[%emt 0:00:03]} d5 {[%emt 0:00:14]} 2. c4 {[%emt 0:00:02]} c6 {[%emt 0:00:05]} 3. Nf3 {[%emt 0:00:13]} Nf6 {[%emt 0:00:07]} 4. e3 {[%emt 0:00:04]} e6 {[%emt 0:00:16]} 5. Nc3 {[%emt 0:00:10]} Nbd7 {[%emt 0:00:20]} 6. Nd2 {[%emt 0:00:12]} Be7 {[%emt 0:10:00]} 7. g3 {[%emt 0:00:39]} e5 {[%emt 0:09:19]} 8. cxd5 {[%emt 0:00:40]} exd4 {[%emt 0:04:01]} 9. exd4 {[%emt 0:00:03]} Nxd5 {[%emt 0:01:19]} 10. Nxd5 {[%emt 0:00:03]} cxd5 {[%emt 0:00:01]} 11. Bg2 {[%emt 0:00:08]} Nf6 {[%emt 0:01:02]} 12. O-O {[%emt 0:00:05]} O-O {[%emt 0:00:28]} 13. Nf3 {[%emt 0:02:25]} Bf5 {[%emt 0:06:50]} 14. Re1 {[%emt 0:04:20]} Re8 {[%emt 0:07:21]} 15. Ne5 {[%emt 0:13:34]} h6 {[%emt 0:09:21]} 16. Qa4 {[%emt 0:15:42]} Qb6 {[%emt 0:07:26]} 17. Re2 {[%emt 0:07:41]} Qb4 {[%emt 0:08:08]} 18. Qd1 {[%emt 0:01:45]} Rac8 {[%emt 0:12:37]} 19. Bf4 {[%emt 0:01:21]} Bd6 {[%emt 0:01:29]} 20. a3 {[%emt 0:14:19]} Qb6 {[%emt 0:00:28]} 21. Qa4 {[%emt 0:02:03]} Re7 {[%emt 0:06:46]} 22. Rae1 {[%emt 0:02:15]} Rec7 {[%emt 0:01:56]} 23. Qd1 {[%emt 0:02:35]} Bc2 {[%emt 0:05:02]} 24. Qd2 {[%emt 0:03:03]} Ne4 {[%emt 0:02:20]} 25. Bxe4 {[%emt 0:04:41]} Bxe4 {[%emt 0:00:31]} 26. f3 {[%emt 0:01:29]} Rc2 {[%emt 0:03:33]} 27. Qe3 {[%emt 0:00:13]} f6 {[%emt 0:02:17]} 28. Nd7 {[%emt 0:06:05]} Bxf4 {[%emt 0:00:37]} 29. gxf4 {[%emt 0:00:02]} Qd6 {[%emt 0:00:33]} 30. Nc5 {[%emt 0:15:13]} Rxe2 {[%emt 0:00:05]} 31. Rxe2 {[%emt 0:00:02]} Bg6 {[%emt 0:00:31]} 32. Qe7 {[%emt 0:03:26]} Qxe7 {[%emt 0:00:44]} 33. Rxe7 {[%emt 0:00:02]} b6 {[%emt 0:00:26]} 34. Ne6 {[%emt 0:00:01]} Bf7 {[%emt 0:00:12]} 35. f5 {[%emt 0:00:06]} Re8 {[%emt 0:00:51]} 36. Rxa7 {[%emt 0:01:57]} Bxe6 {[%emt 0:00:02]} 37. fxe6 {[%emt 0:00:04]} Rxe6 {[%emt 0:00:15]} 38. Kf2 {[%emt 0:01:21]} Rc6 {[%emt 0:01:01]} 39. b4 {[%emt 0:00:16]} Rc2+ {[%emt 0:00:45]} 40. Kg3 {[%emt 0:00:01]} Rd2 {[%emt 0:00:37]} 41. Ra6 {[%emt 0:00:50]} Rd3 {[%emt 0:00:26]} 42. b5 {[%emt 0:01:13]} Kf7 {[%emt 0:00:36]} 43. Rxb6 {[%emt 0:00:21]} Rxa3 {[%emt 0:00:04]} 44. Rd6 {[%emt 0:00:03]} Rb3 {[%emt 0:00:37]} 45. Rxd5 {[%emt 0:00:22]} Ke6 {[%emt 0:00:09]} 46. Rc5 {[%emt 0:00:02]} Rb4 {[%emt 0:00:38]} 47. Rc7 {[%emt 0:01:23]} g5 {[%emt 0:00:51]} 48. Rc6+ {[%emt 0:01:15]} Ke7 {[%emt 0:00:33]} 49. Rc7+ {[%emt 0:00:36]} Ke6 {[%emt 0:00:06]} 50. Rc6+ {[%emt 0:00:00]} Ke7 {[%emt 0:00:08]} 51. b6 {[%emt 0:00:13]} Rxd4 {[%emt 0:00:15]} 52. Rc7+ {[%emt 0:00:21]} Ke6 {[%emt 0:00:14]} 53. b7 {[%emt 0:00:01]} Rb4 {[%emt 0:00:06]} 54. Rh7 {[%emt 0:00:01]} Kf5 {[%emt 0:00:25]} 55. h3 {[%emt 0:00:02]} h5 {[%emt 0:00:31]} 56. Rxh5 {[%emt 0:02:47]} Rxb7 {[%emt 0:00:02]} 1/2-1/2

[Event "3rd Gujarat GM Open 2022"]
[Site "Ahmedabad"]
[Date "2022.04.02"]
[Round "3.9"]
[White "Jain Kashish Manoj"]
[Black "Rios, Cristhian Camilo"]
[Result "1/2-1/2"]
[ECO "B31"]
[WhiteElo "2162"]
[BlackElo "2449"]
[Annotator "ChessBase"]
[PlyCount "93"]
[EventDate "2022.03.31"]
[EventType "swiss"]
[EventCountry "IND"]
[SourceTitle "playchess.com"]
[Source "ChessBase"]
[SourceQuality "1"]
[TimeControl "5400+30"]

1. e4 {[%emt 0:00:11]} c5 {[%emt 0:05:37]} 2. Nf3 {[%emt 0:00:05]} Nc6 {[%emt 0:00:15]} 3. Bb5 {[%emt 0:00:13]} g6 {[%emt 0:00:11]} 4. O-O {[%emt 0:00:12]} Bg7 {[%emt 0:00:09]} 5. Nc3 {[%emt 0:00:11]} e5 {[%emt 0:00:57]} 6. Bc4 {[%emt 0:00:57]} h6 {[%emt 0:02:27]} 7. a3 {[%emt 0:00:22]} Nge7 {[%emt 0:00:23]} 8. b4 {[%emt 0:01:28]} d6 {[%emt 0:00:37]} 9. d3 {[%emt 0:00:26]} O-O {[%emt 0:00:49]} 10. Rb1 {[%emt 0:00:53]} b6 {[%emt 0:00:52]} 11. Nd5 {[%emt 0:03:45]} Be6 {[%emt 0:02:14]} 12. Re1 {[%emt 0:01:44]} Kh7 {[%emt 0:01:51]} 13. Nxe7 {[%emt 0:07:42]} Qxe7 {[%emt 0:01:24]} 14. Bd5 {[%emt 0:00:43]} Bxd5 {[%emt 0:10:42]} 15. exd5 {[%emt 0:00:33]} Nd4 {[%emt 0:00:08]} 16. Nd2 {[%emt 0:09:22]} Rac8 {[%emt 0:13:09]} 17. bxc5 {[%emt 0:04:40]} Rxc5 {[%emt 0:04:28]} 18. c4 {[%emt 0:00:22]} Qd7 {[%emt 0:00:35]} 19. Bb2 {[%emt 0:03:54]} Nf5 {[%emt 0:00:12]} 20. Bc3 {[%emt 0:00:58]} Ne7 {[%emt 0:05:40]} 21. Bb4 {[%emt 0:06:13]} Rc7 {[%emt 0:00:06]} 22. a4 {[%emt 0:05:58]} f5 {[%emt 0:00:35]} 23. a5 {[%emt 0:17:05]} b5 {[%emt 0:02:04]} 24. Qb3 {[%emt 0:03:22]} bxc4 {[%emt 0:06:16]} 25. Nxc4 {[%emt 0:04:18]} Rb8 {[%emt 0:03:37]} 26. Qa3 {[%emt 0:09:28]} Rcb7 {[%emt 0:07:41]} 27. a6 {[%emt 0:03:52]} Rb5 {[%emt 0:00:51]} 28. Qa4 {[%emt 0:04:14]} Nxd5 {[%emt 0:06:47]} 29. Nxd6 {[%emt 0:02:00]} Qxd6 {[%emt 0:00:04]} 30. Bxd6 {[%emt 0:00:11]} Rxb1 {[%emt 0:00:04]} 31. Kf1 {[%emt 0:04:33]} R8b5 {[%emt 0:00:36]} 32. Qc4 {[%emt 0:04:32]} e4 {[%emt 0:00:59]} 33. dxe4 {[%emt 0:01:48]} fxe4 {[%emt 0:00:28]} 34. Qxe4 {[%emt 0:00:43]} Nc3 {[%emt 0:02:57]} 35. Rxb1 {[%emt 0:00:27]} Rxb1+ {[%emt 0:01:01]} 36. Qxb1 {[%emt 0:00:01]} Nxb1 {[%emt 0:00:10]} 37. Bc5 {[%emt 0:00:02]} Nc3 {[%emt 0:03:01]} 38. Bxa7 {[%emt 0:00:01]} Nd5 {[%emt 0:00:01]} 39. Be3 {[%emt 0:01:14]} g5 {[%emt 0:02:00]} 40. a7 {[%emt 0:00:12]} Nc7 {[%emt 0:00:06]} 41. Ke2 {[%emt 0:01:15]} Kg6 {[%emt 0:00:07]} 42. g4 {[%emt 0:00:37]} Kf7 {[%emt 0:01:58]} 43. f4 {[%emt 0:00:35]} gxf4 {[%emt 0:01:01]} 44. Bxf4 {[%emt 0:00:02]} Bd4 {[%emt 0:00:35]} 45. Bxc7 {[%emt 0:00:07]} Bxa7 {[%emt 0:00:05]} 46. Kf3 {[%emt 0:00:08]} Kg6 {[%emt 0:00:07]} 47. Ke4 {[%emt 0:02:21]} 1/2-1/2

[Event "3rd Gujarat GM Open 2022"]
[Site "Ahmedabad"]
[Date "2022.04.02"]
[Round "3.10"]
[White "Santu, Mondal"]
[Black "Nigmatov, Ortik"]
[Result "0-1"]
[ECO "E62"]
[WhiteElo "2063"]
[BlackElo "2445"]
[Annotator "TA"]
[PlyCount "72"]
[EventDate "2022.03.31"]
[EventType "swiss"]
[EventCountry "IND"]
[SourceTitle "playchess.com"]
[Source "ChessBase"]
[SourceQuality "1"]
[TimeControl "5400+30"]

{[%evp 14,72,54,20,38,31,21,36,35,0,0,-9,-12,-6,-13,-11,-7,-7,-4,-21,-8,-20,-8,-18,-17,-11,6,-35,-8,-34,-46,-90,-11,-12,-12,-29,-31,-20,-6,-20,-21,-16,-23,-71,-62,-84,-43,-48,-47,-122,-110,-786,-520,-2800,-2510,-29993,-29994,-29994,-29995,-29996,-29997]} 1. d4 {[%emt 0:00:30]} Nf6 {[%emt 0:01:40]} 2. Nf3 {[%emt 0:00:25]} g6 {[%emt 0:00:06]} 3. c4 {[%emt 0:00:26]} Bg7 {[%emt 0:00:06]} 4. g3 {[%emt 0:00:43]} O-O {[%emt 0:00:07]} 5. Bg2 {[%emt 0:00:09]} d6 {[%emt 0:00:18]} 6. Nc3 {[%emt 0:00:22]} c6 {[%emt 0:00:05]} 7. e4 {[%emt 0:02:11]} Bg4 {[%emt 0:00:13]} 8. O-O {[%emt 0:01:50]} Qb6 {[%emt 0:02:04] E62: King's Indian: Fianchetto: 6...c6 and Panno Variation (6...Nc6) without ...a6.} 9. Rb1 {[%emt 0:18:49]} Nfd7 {[%emt 0:01:47]} 10. Be3 {[%emt 0:00:40]} c5 {[%emt 0:16:24] White is slightly better.} 11. Nd5 {[%emt 0:09:44]} Qd8 {[%emt 0:00:40]} 12. h3 $132 {[%emt 0:00:34][%mdl 2048] White is not holding back} Bxf3 {[%emt 0:00:33]} 13. Bxf3 {[%emt 0:00:06][%cal Oe4e5]} Nc6 {[%emt 0:00:41][%cal Rc5d4] Against e5} 14. dxc5 {[%emt 0:00:42]} dxc5 {[%emt 0:00:15] [#]} 15. Be2 $146 {[%emt 0:03:28]} ({Predecessor:} 15. Bg2 e6 16. Nc3 Qe7 17. Qc1 Nde5 18. Na4 Nd3 19. Qc2 Ndb4 20. Qe2 Nd4 21. Bxd4 Bxd4 {½-½ (51) Padeiro,J (2276)-Perez Mauricio,X (2155) Ourense 2007}) 15... e6 {[%emt 0:02:38]} 16. Nc3 {[%emt 0:00:46]} Qe7 {[%emt 0:01:39]} 17. f4 {[%emt 0:03:15]} Bd4 {[%emt 0:01:36]} 18. Qd2 {[%emt 0:03:51]} Rad8 {[%emt 0:00:21]} 19. Rbd1 {[%emt 0:12:08]} a6 {[%emt 0:02:22]} 20. Bd3 {[%emt 0:05:44]} f5 {[%emt 0:05:32]} 21. Qf2 {[%emt 0:03:09]} Qg7 {[%emt 0:04:38]} 22. e5 {[%emt 0:01:16]} Ndb8 {[%emt 0:02:02]} (22... g5 $1 $17 {[%cal Rg5f4] ...gxf4 is the strong threat.} 23. Kh2 gxf4 24. gxf4 {[#]} Ndxe5 $1 {[%mdl 512]} 25. fxe5 (25. Rg1 Ng6 $17) 25... Qxe5+ 26. Bf4 Bxf2 27. Bxe5 Nxe5 28. Bxf5 exf5 29. Rxd8 Rxd8 30. Rxf2 Nxc4 31. Rxf5 Rd2+ 32. Kg3 Rd3+ 33. Kf4 b6) 23. Na4 $11 {[%emt 0:04:01]} Qe7 {[%emt 0:00:33]} 24. Be2 {[%emt 0:01:06]} Bxe3 {[%emt 0:04:36]} 25. Qxe3 {[%emt 0:00:07]} Nd4 {[%emt 0:00:04]} 26. Bf3 {[%emt 0:01:21]} b5 {[%emt 0:09:49]} 27. Nc3 {[%emt 0:03:27]} bxc4 {[%emt 0:01:45]} 28. Na4 {[%emt 0:01:05]} (28. Bg2 $11) 28... Qc7 $17 {[%emt 0:04:30]} 29. Qc3 {[%emt 0:11:52]} Nxf3+ {[%emt 0:02:39]} 30. Qxf3 {[%emt 0:00:10]} Rd4 {[%emt 0:00:05]} 31. Rc1 {[%emt 0:06:51]} ({Better is} 31. b3 $1 $15) 31... Rfd8 {[%emt 0:01:37][%cal Bf8d8,Bd8d2,Bd2h2][%mdl 32]} 32. Qa3 $2 {[%emt 0:02:18][%mdl 8192] White does not recover from this.} (32. b3 $17) 32... Qc6 {[%emt 0:02:32]} 33. Nxc5 {[%emt 0:02:49]} (33. Qxc5 $142 Qxa4 34. b3 cxb3 35. Qb6) 33... Rd2 $19 {[%emt 0:00:32][%csl Gd2][%cal Rc6g2] [#]} 34. Rf2 {[%emt 0:00:18] Against Qg2+} Rxf2 {[%emt 0:00:18] Black mates.} 35. Kxf2 {[%emt 0:00:05]} Rd2+ {[%emt 0:00:03]} 36. Ke1 {[%emt 0:01:00]} Rh2 {[%emt 0:00:09] Weighted Error Value: White=0.90/Black=0.18 (very precise)} 0-1